Cogmind - Beta 17.1 @@@ ROGUE MODE // 2026.09.13 @ 16:08:55 Player: Firely Result: Destroyed by JW-KWR(R) with Subdweller Laser Performance ------------- Evolutions (0) 0 Regions Visited (3) 600 Robots Destroyed (28) 140 Value Destroyed (657) 657 Prototype IDs (0) 0 Alien Tech Used (0) 0 Bonus (0) 0 TOTAL SCORE: 1397 Bonus ------- None Cogmind --------- Core Integrity 0/250 Matter 166/300 Energy 100/100 System Corruption 0% Temperature Cool (6) Movement Treading (160) Location -10/Subcaves Parts ------- > --- POWER (1) -------- (None) > --- PROPULSION (2) --- Light Treads Improved Treads > --- UTILITY (2) ------ Medium Storage Unit Signal Interpreter > --- WEAPON (2) ------- Battle Rifle Bore Cannon > --- INVENTORY (10) --- Light Ion Engine Flight Unit Flight Unit Flight Unit Flight Unit Flight Unit Improved Heat Sink Small Storage Unit Structural Scanner Rocket Launcher Peak State ------------ > --- POWER ------------ Light Ion Engine > --- PROPULSION ------- Light Treads Improved Treads > --- UTILITY ---------- Medium Storage Unit Signal Interpreter > --- WEAPON ----------- Bore Cannon Rocket Launcher > --- INVENTORY -------- Light Ion Engine Flight Unit Flight Unit Flight Unit Flight Unit Flight Unit Improved Heat Sink Small Storage Unit Structural Scanner Assault Rifle [Rating: 14] Favorites ----------- Power Light Ion Engine Engine Light Ion Engine Power Core Light Nuclear Core Propulsion Improved Treads Treads Improved Treads Utility Medium Storage Unit Device Sensor Array Storage Medium Storage Unit Processor Signal Interpreter Weapon Assault Rifle Energy Gun Small Laser Ballistic Gun Assault Rifle Ballistic Cannon Bore Cannon Launcher Rocket Launcher Build | -11 -10 -10 -10 ------- Run | Yrd Mat Min Sub Slots Evolved . | . . . . Power . | . . . . Propulsion . | . . . . Utility . | . . . . Weapon . | . . . . Parts Attached 25 | 6 14 4 1 Power 5 | 1 3 1 . Engine 4 | 1 2 1 . Core 1 | . 1 . . Reactor . | . . . . Propulsion 6 | 2 4 . . Treads 6 | 2 4 . . Leg . | . . . . Wheel . | . . . . Hover . | . . . . Flight . | . . . . Utility 5 | 1 3 1 . Device 1 | . 1 . . Storage 2 | 1 1 . . Processor 2 | . 1 1 . Hackware . | . . . . Protection . | . . . . Artifact . | . . . . Weapon 9 | 2 4 2 1 Energy Gun 2 | 1 1 . . Energy Cannon . | . . . . Ballistic Gun 5 | 1 3 . 1 Ballistic Cannon 1 | . . 1 . Launcher 1 | . . 1 . Special Weapon . | . . . . Impact Weapon . | . . . . Slashing Weapon . | . . . . Piercing Weapon . | . . . . Special Melee Weapon . | . . . . Unidentified Prototypes . | . . . . Parts Lost 7 | . 4 2 1 Power 3 | . 1 1 1 Propulsion 1 | . 1 . . Utility . | . . . . Weapon 3 | . 2 1 . Highest Loss Streak 2 | . 2 1 1 To Critical Strikes 1 | . . 1 . Average Backups 8 | 2 8 9 10 Power 1 | . 1 . 1 Propulsion 3 | 1 3 2 5 Utility 2 | . 1 4 3 Weapon 1 | 1 1 1 1 Tool/Special . | . . . . Unused Backups 14 | . 3 3 8 Power 1 | . . . 1 Propulsion 7 | . 2 . 5 Utility 4 | . . 2 2 Weapon 2 | . 1 1 . Tool/Special . | . . . . Average Slot Usage (%) 97 | . 95 99 99 Engine 13 | . 12 13 13 Treads 27 | . 27 28 28 Device 1 | . 3 . . Storage 14 | . 14 14 14 Processor 10 | . 7 14 14 Energy Gun 5 | . 9 . . Ballistic Gun 19 | . 18 25 . Ballistic Cannon 1 | . . 1 14 Launcher 1 | . . 1 13 Peak Build Rating 14 | 6 12 14 14 Average Rating 10 | 4 10 9 13 On Entrance 7 | . 6 10 14 Avg Prop Armor Cover (%) . | . . . . Naked Turns . | . . . . Heaviest Build 26 | 11 19 26 26 Greatest Support 46 | 40 46 43 43 Greatest Overweight (x) . | . . . . Average Overweight (x) . | . . . . Largest Inventory Capacity 10 | 8 10 10 10 Average Capacity 9 | 7 9 10 10 Most Carried 10 | 4 10 10 10 Average Carried 8 | 2 8 9 9 Final Capacity 10 | 8 10 10 10 Final Carried 10 | 4 10 10 10 Class Distribution -------------------- 100% | Mutant Dominant Class ---------------- Mutant | -10/Materials Mutant | -10/Mines Mutant | -10/Subcaves Resources | -11 -10 -10 -10 ----------- Run | Yrd Mat Min Sub Matter Collected 844 | 225 488 131 . Remotely . | . . . . Salvage Created 749 | . 610 84 55 Parts 53 | . 45 5 3 Haulers Intercepted 2 | . 2 . . Recyclers Shooed . | . . . . Parts Field Recycled . | . . . . Retrieved Matter . | . . . . Parts Self-Destructed . | . . . . Prevented . | . . . . Parts Restored . | . . . . Kills | -11 -10 -10 -10 ------- Run | Yrd Mat Min Sub Combat Hostiles Destroyed 23 | . 15 5 3 Guns 20 | . 15 5 . AOE 3 | . . . 3 Classes Destroyed 7 | . 5 1 1 Hauler 2 | . 2 . . Operator 2 | . 2 . . Watcher 2 | . 2 . . Swarmer 9 | . 6 3 . Grunt 10 | . 9 1 . Subdweller 3 | . . . 3 Assembled 1 | . . 1 . Best Kill Streak 5 | . 5 3 3 Combat Bots Only 5 | . 5 3 3 Max Kills in Single Turn 1 | . 1 1 1 Gunslinging . | . . . . Exploded 1 | . . . 1 Melee . | . . . . Uniques/NPCs Destroyed . | . . . . Combat | -11 -10 -10 -10 -------- Run | Yrd Mat Min Sub Hostile Shots Fired 146 | . 113 20 13 Missed 26 | . 22 3 1 Hits 120 | . 91 17 12 Projectile 120 | . 91 17 12 Critical Strikes 5 | . 4 1 . Damage Taken 1578 | . 1090 202 286 Core 263 | . 192 22 49 Absorbed by Shields . | . . . . Core Remaining (%) 100 | 100 . . . Volleys Fired 84 | . 63 9 12 Largest 2 | . 2 2 2 Hottest 80 | . 80 68 73 Shots Fired 159 | . 126 18 15 Gun 144 | . 126 15 3 Cannon 6 | . . 3 3 Launcher 9 | . . . 9 Special . | . . . . Kinetic 92 | . 68 18 6 Thermal 58 | . 58 . . Explosive 9 | . . . 9 Electromagnetic . | . . . . Robot Hit Streak 12 | . 12 4 6 Robot Miss Streak 3 | . 3 2 1 Penetration Max . | . . . . Secondary Targets . | . . . . Shots Hit Robots 102 | . 82 11 9 Core Hits 46 | . 31 7 8 Critical Kills . | . . . . Critical Parts Destroyed . | . . . . Critical Strikes . | . . . . Melee Attacks . | . . . . Impact . | . . . . Slashing . | . . . . Piercing . | . . . . Sneak Attacks . | . . . . Combat Hostiles . | . . . . Follow-up Attacks . | . . . . Damage Inflicted 1673 | . 954 141 578 Guns 1135 | . 946 141 48 Cannons 66 | . . . 66 Explosions 464 | . . . 464 Melee . | . . . . Ramming 8 | . 8 . . Kinetic 794 | . 539 141 114 Thermal 407 | . 407 . . Explosive 464 | . . . 464 Electromagnetic . | . . . . Impact . | . . . . Slashing . | . . . . Piercing . | . . . . Highest Corruption . | . . . . Average Corruption . | . . . . Corruption Purged . | . . . . Corruption Blocked . | . . . . Overload Shots . | . . . . Overflow Damage . | . . . . Projectiles . | . . . . Explosions . | . . . . Melee . | . . . . Knockbacks 1 | . . . 1 Impact . | . . . . Kinetic 1 | . . . 1 Secondary . | . . . . Self-Inflicted Damage 28 | . . . 28 Shots 1 | . . . 1 Rammed 3 | . 3 . . Targets Rammed 5 | . 5 . . Kicked . | . . . . Crushed 2 | . 2 . . Highest Temperature 135 | . 135 12 . Average Temperature 45 | . 49 4 . Received Heat Transfer 753 | . 603 81 69 Siege Activations . | . . . . Martial Activations . | . . . . Shielding Activations . | . . . . Robots Disrupted . | . . . . Combat Hostiles . | . . . . Robots Corrupted . | . . . . Combat Hostiles . | . . . . Parts Fried . | . . . . Impact Corruptions . | . . . . Robots Melted . | . . . . Combat Hostiles . | . . . . Parts Melted 2 | . 2 . . Heat Transferred 950 | . 950 . . Parts Sabotaged . | . . . . Parts Stolen . | . . . . Parts Stripped . | . . . . Power Chain Reactions . | . . . . Alert | -11 -10 -10 -10 ------- Run | Yrd Mat Min Sub Maximum Alert Level . | . . . . Low Security (%) 100 | 100 100 100 . Level 1 . | . . . . Level 2 . | . . . . Level 3 . | . . . . Level 4 . | . . . . Level 5 . | . . . . High Security . | . . . . Max Security . | . . . . Peak Influence 110 | . 110 82 . Initial 8 | . . 8 . Average 19 | . 26 10 . Influence Increases 556 | . 425 131 . Destroy 0b10 Robot/C 380 | . 300 80 . Destroy 0b10 Robot/NC 30 | . 30 . . Destroy Leader 88 | . 68 20 . Successful Hack 11 | . 11 . . Destroy Structure 2 | . 1 1 . Lose Combat Pursuer 45 | . 15 30 . Influence Decreases 556 | . 402 108 46 Entered New Map 40 | . . 15 25 Time Decay 468 | . 362 85 21 Lost Part 48 | . 40 8 . Squads Dispatched 2 | . 2 . . Investigation 1 | . 1 . . Extermination . | . . . . Reinforcement 1 | . 1 . . Assault . | . . . . Garrison . | . . . . Intercept . | . . . . Searches Triggered . | . . . . Construction Impeded . | . . . . Haulers Reinforced . | . . . . Active Scanning Responses . | . . . . Cargo Convoy Interrupts . | . . . . Stealth | -11 -10 -10 -10 --------- Run | Yrd Mat Min Sub Distress Signals 1 | . 1 . . Communications Jammed . | . . . . Distress Signals . | . . . . Times Spotted 39 | . 26 8 5 Peak Tracking Total 4 | . 4 3 2 Tactical Retreats 4 | . 1 3 . Traps | -11 -10 -10 -10 ------- Run | Yrd Mat Min Sub Traps Triggered 1 | . 1 . . Indirectly . | . . . . Trap Hack Attempts . | . . . . Triggered . | . . . . Disarmed 5 | . 5 . . Reprogrammed . | . . . . Reused . | . . . . Traps Extracted . | . . . . Installed . | . . . . Triggered . | . . . . Machines | -11 -10 -10 -10 ---------- Run | Yrd Mat Min Sub Machines Disabled . | . . . . Max in Single Turn . | . . . . Machines Repaired . | . . . . Machines Dismantled . | . . . . Machines Sabotaged . | . . . . Overloaded Fab Kills . | . . . . Hacking | -11 -10 -10 -10 --------- Run | Yrd Mat Min Sub Machines Accessed 5 | . 5 . . Terminals 5 | . 5 . . Fabricators . | . . . . Repair Stations . | . . . . Recycling Units . | . . . . Scanalyzers . | . . . . Garrison Access . | . . . . Total Hacks 17 | . 17 . . Successful 7 | . 7 . . Failed 10 | . 10 . . Catastrophic . | . . . . Database Lockouts . | . . . . Manual . | . . . . Terminals 17 | . 17 . . Fabricators . | . . . . Repair Stations . | . . . . Recycling Units . | . . . . Scanalyzers . | . . . . Garrison Access . | . . . . Terminal Hacks 7 | . 7 . . Robot Analysis 1 | . 1 . . Branch Access Points 1 | . 1 . . Emergency Access Points 1 | . 1 . . Locate Traps 2 | . 2 . . Disarm Traps 1 | . 1 . . Zone Layout 1 | . 1 . . Fabricator Hacks . | . . . . Repair Station Hacks . | . . . . Recycling Unit Hacks . | . . . . Scanalyzer . | . . . . Garrison Access Hacks . | . . . . Unauthorized Hacks . | . . . . Terminals . | . . . . Fabricators . | . . . . Repair Stations . | . . . . Recycling Units . | . . . . Scanalyzers . | . . . . Garrison Access . | . . . . Data Cores Recovered 1 | . 1 . . Used . | . . . . Hacking Detections 3 | . 3 . . Full Trace Events . | . . . . Feedback Events . | . . . . Feedback Blocked . | . . . . Robot Schematics Acquired . | . . . . Robots Built . | . . . . Authchips . | . . . . Time . | . . . . Total Robot Build Rating . | . . . . Part Schematics Acquired . | . . . . Parts Built . | . . . . Authchips . | . . . . Time . | . . . . Total Part Build Rating . | . . . . Part Studies Acquired . | . . . . Parts Repaired . | . . . . Time . | . . . . Parts Recycled . | . . . . Recycled Matter . | . . . . Retrieved Matter . | . . . . Retrieved Components . | . . . . Parts Scanalyzed . | . . . . Part Schematics Acquired . | . . . . Parts Damaged . | . . . . Bothacking | -11 -10 -10 -10 ------------ Run | Yrd Mat Min Sub Used RIF Installer . | . . . . Robots Hacked . | . . . . Non-combat . | . . . . Combat . | . . . . Robot Hacks Applied . | . . . . Relay Couplers Released . | . . . . Fabnet Peak Effective % . | . . . . Robots Rewired . | . . . . Allies Hacked . | . . . . Hacks Repelled . | . . . . Allies | -11 -10 -10 -10 -------- Run | Yrd Mat Min Sub Total Allies . | . . . . Largest Group . | . . . . Highest-Rated Group . | . . . . Highest-Rated Ally . | . . . . Total Orders . | . . . . Ally Attacks . | . . . . Total Damage . | . . . . Kills . | . . . . Allies Corrupted . | . . . . Allies Melted . | . . . . Intel | -11 -10 -10 -10 ------- Run | Yrd Mat Min Sub Active Infowar (turns) 1904 | . 1597 307 . Optics 1412 | . 1105 307 . Sensors 492 | . 492 . . Robot Analysis Total 1 | . 1 . . Derelict Logs Recovered 1 | . . 1 . Drone Launches . | . . . . Drone Recoveries . | . . . . Exploration | -11 -10 -10 -10 ------------- Run | Yrd Mat Min Sub Turns Passed 3923 | 78 2084 1444 317 Spaces Moved 2061 | 42 1093 746 180 Core 2 | 2 . . . Treads 2059 | 40 1093 746 180 Legs . | . . . . Wheels . | . . . . Hover . | . . . . Flight . | . . . . Fastest Speed 50 | 50 160 160 160 Average Speed 159 | 154 160 160 160 Slowest Speed 160 | 160 160 160 160 Overloaded Moves . | . . . . Propulsion Burnouts . | . . . . Robots Hopped . | . . . . Potential Cave-ins . | . . . . Cave-ins Triggered . | . . . . Exploration Rate (%) 53 | 4 96 98 17 Regions Visited 3 Branch Regions 2 Pre-discovered Areas 1 | . . 1 . Known Exits Taken 2 | . 1 1 . Unknown Exits Taken 1 | 1 . . . Scrap Searched 2 | . . 2 . Spaces Dug . | . . . . Terrain Destroyed 55 | . . 3 52 Melee . | . . . . Projectile 3 | . . 3 . AOE 52 | . . . 52 Terrain Rammed . | . . . . Walls Destroyed . | . . . . Machines Disabled . | . . . . Actions | -11 -10 -10 -10 --------- Run | Yrd Mat Min Sub Total 2527 | 53 1300 979 195 Wait 313 | . 101 212 . Move 2058 | 41 1092 745 180 Hop . | . . . . Pick Up 25 | 6 12 6 1 Fast Attach 10 | 4 6 . . Attach 6 | 2 2 2 . Detach . | . . . . Swap 10 | . 7 2 1 Drop 16 | . 12 3 1 Fire 84 | . 63 9 12 Melee . | . . . . Ram . | . . . . Kick . | . . . . Crush 5 | . 5 . . Escape Stasis . | . . . . Rewire . | . . . . Trap . | . . . . Miscellaneous . | . . . . Route ------- -11/Scrapyard -10/Materials (discovered 6 exits: *Mat x3 / *Min x2 / *Sub) -10/Mines (discovered 3 exits: *Mat x2 / *Sub) -10/Subcaves History --------- Turn | Location | Event 12 | -11/Scrapyard | Discovered new exit (range 15) 79 | -11/Scrapyard | Entered Materials 155 | -10/Materials | Identified exit to Mines 300 | -10/Materials | Build established: Mutant 623 | -10/Materials | Core integrity fell below 50% 996 | -10/Materials | Discovered new exit (range 16) 1462 | -10/Materials | Discovered new exit (range 18) 1596 | -10/Materials | Discovered new exit (range 6) 1733 | -10/Materials | Discovered new exit (range 16) 2163 | -10/Materials | Entered Mines 2179 | -10/Mines | Core integrity fell below 20% 2249 | -10/Mines | A weapon hastily lodged in a ceiling crevice suddenly fell to the ground 2268 | -10/Mines | Met a Derelict bent on vengeance 2456 | -10/Mines | Discovered new exit (range 9) 2475 | -10/Mines | Identified exit to Materials 2660 | -10/Mines | Received a Rocket Launcher from a helpful Derelict 2669 | -10/Mines | Learned location of Storage (-9) 3017 | -10/Mines | Assembled infested the area 3414 | -10/Mines | Discovered exit to Materials (range 9) 3488 | -10/Mines | Discovered new exit (range 6) 3494 | -10/Mines | Identified exit to Subcaves 3607 | -10/Mines | Entered Subcaves 3792 | -10/Subcaves | Shifting Twisted Machinery released Sub. Optics 3819 | -10/Subcaves | Shifting Twisted Machinery released Battle Rifle 3849 | -10/Subcaves | Ambushed by Subdweller buried in earth 3924 | -10/Subcaves | Destroyed by JW-KWR(R) with Subdweller Laser Last Messages --------------- BZ-KBK(R) destroyed. LX-ODD(R): "ARGHSUB!" Destroyed Scrap Shield. LX-ODD(R) destroyed. VA-Y1H(R) destroyed. The unstable cave ceiling collapses. Subatomizers dissect the Sub. Optics, destroying it. The unstable cave ceiling collapses. Subatomizers dissect the Disposable Heat Sink. The unstable cave ceiling collapses. Subatomizers dissect the Disposable Heat Sink. The unstable cave ceiling collapses. Subatomizers dissect the Disposable Heat Sink. The unstable cave ceiling collapses. HV Slug penetrates VE-LEH(R). VE-LEH(R) knocked back. Lgt. Ion Engine destroyed. HV Slug penetrates VE-LEH(R). HV Slug penetrates Wall. Map ----- +----------------------------------------------------+ | ?????????????????????????????????????????????????? | | ?????????????????????????????????????????????????? | | ?????????????????????????????????????????????????? | | ?????????????????????????????????????????????????? | | ?????????????????????????????????????????????????? | | ?????????????????????????????????????????????????? | | ?????????????????????????????????????????????????? | | ?????????????????????????????????????????????????? | | ?????????????????????????????????????????????????? | | ?????????????????????????????????????????????????? | | ?????????????????????????????????????????????????? | | ????????????????##???????????????????????????????? | | ????????????????? ??????????????????????????????? | | ?????????????????? ??????????????????????????????? | | ??????????????????? ????????????????????????????? | | ???????????????????? ????????????????????????????? | | ????????????????????? ???????????????????????????? | | ?????????????????????? ??????????????????????????# | | ??????????????????????# ??###????????############# | | ??????????????????????# ### #???????## # # | | ??????????????????????# ##??????# # | | ???????????????????????? #??###### ! | | ?????????????????????????# #?### # | | ???????????????????#?????# ### # & | | ????????????????# # ###RR## # # | | ????????????????# @ % ## # #& | | ???????????????# % ####### | | ???????????????# # ### # ## #?????## ### | | ???????????????????????##### ### #??????## #?## | | ?????????????????????????? # #???????## #?? | | ????????????????????????? #????????## ? | | ??????????????????????? #?????????? | | ?????????????????????? # ### #?????????? | | ?????????????????????## #######??##?????????? # | | ?????????????????????# ????????????????????? ## | | ?????????????????????# ?????????????????????? ?? | | ?????????????????????# ?????????????????????? ??? | | ?????????????????????# ??????????????????????????? | | ?????????????????????#???????????????????????????? | | ?????????????????????????????????????????????????? | | ?????????????????????????????????????????????????? | | ?????????????????????????????????????????????????? | | ?????????????????????????????????????????????????? | | ?????????????????????????????????????????????????? | | ?????????????????????????????????????????????????? | | ?????????????????????????????????????????????????? | | ?????????????????????????????????????????????????? | | ?????????????????????????????????????????????????? | | ?????????????????????????????????????????????????? | | ?????????????????????????????????????????????????? | +----------------------------------------------------+ Best States ------------- Heat Dissipation 25 Energy Generation 14 Energy Capacity 250 Matter Stores 300 Matter Capacity 300 Sight Range 18 Robot Scan Range 14 Terrain Scan Density 10 Evasion (%) 40 Recoil Reduction 2 Item Schematics ----------------- None Robot Schematics ------------------ None Fabricated ------------ Nothing Repaired ---------- Nothing Studied --------- None Alien Tech Used ----------------- None Achievements -------------- I Survived The Infestation Challenges ------------ None Game ------ Seed DimensionalImprovedShield Manual? 0 Play Time 00:29:31 Cumulative 38.2 hours Start 2026.09.13 @ 15:39:20 End 2026.09.13 @ 16:08:55 Sessions 1 Manual Loads 0 Difficulty Rogue Special Mode None Game No. 21 Rogue 21 Adventurer 0 Explorer 0 Win Type - Total 0 Types 0/0/0/0/0/0/0/0/0/0 Lore% 29 Gallery% 21 Achievement% 20 Wizard Run 0 Options --------- Layout 1 ASCII 0 Keyboard 0 Movement Numpad Keybinds 0 Fullscreen 1 Font 32/SmallcapsGlow Map View 50x40 Zoom Use 0% Tactical HUD 0 Map Filters NONE Filters NONE Steam 1 RUN: 2f4afc83-7506-4619-9159-1b849587a29d